Cogmind - Beta 15 @@@ ROGUE MODE // 2025.09.02 @ 11:04:58 Player: shapeshifter Result: Destroyed by XF-5HX(R) with Subdweller Shrapnel Launcher Performance ------------- Evolutions (0) 0 Regions Visited (3) 600 Robots Destroyed (22) 110 Value Destroyed (426) 426 Prototype IDs (1) 20 Alien Tech Used (0) 0 Bonus (0) 0 TOTAL SCORE: 1156 Bonus ------- None Cogmind --------- Core Integrity 0/250 Matter 297/300 Energy 198/200 System Corruption 0% Temperature Cool (0) Movement Rolling (110) Ox2 Location -10/Subcaves Parts ------- > --- POWER (1) -------- Subdweller Power Source > --- PROPULSION (2) --- Wheel Wheel > --- UTILITY (2) ------ High-capacity Storage Unit V3-11A's Pendant > --- WEAPON (2) ------- Assault Rifle Subdweller Machine Gun > --- INVENTORY (20) --- Subdweller Power Source Subdweller Power Source Subdweller Power Source Spiked Treads Subdweller Monowheel Subdweller Monowheel Improved Heat Sink Disposable Heat Sink Structural Scanner Improved Sensor Array Improved Terrain Scan Processor Seismic Detector Makeshift Hacking Suite Improved Trap Extractor (0/6) Subdweller Beam Cannon Subdweller Beam Cannon Light Assault Rifle Rocket Launcher Dirty Datajack (20) Peak State ------------ > --- POWER ------------ Subdweller Power Source > --- PROPULSION ------- Subdweller Monowheel Subdweller Monowheel > --- UTILITY ---------- High-capacity Storage Unit V3-11A's Pendant > --- WEAPON ----------- Assault Rifle Subdweller Machine Gun > --- INVENTORY -------- Subdweller Power Source Subdweller Power Source Spiked Treads Wheel Wheel Improved Heat Sink Disposable Heat Sink Structural Scanner Improved Sensor Array Improved Terrain Scan Processor Seismic Detector Makeshift Hacking Suite Improved Trap Extractor Subdweller Beam Cannon Light Assault Rifle Rocket Launcher Dirty Datajack [Rating: 17] Favorites ----------- Power Ion Engine Engine Ion Engine Propulsion Light Treads Treads Light Treads Wheel Wheel Utility High-capacity Storage Unit Device Seismic Detector Storage High-capacity Storage Unit Weapon Assault Rifle Energy Cannon Subdweller Beam Cannon Ballistic Gun Assault Rifle Ballistic Cannon Flak Cannon Build | -11 -10 -10 -10 ------- Run | Yrd Mat Min Sub Slots Evolved . | . . . . Power . | . . . . Propulsion . | . . . . Utility . | . . . . Weapon . | . . . . Parts Attached 26 | 7 3 4 12 Power 5 | 1 . 2 2 Engine 5 | 1 . 2 2 Core . | . . . . Reactor . | . . . . Propulsion 7 | 2 . 1 4 Treads 3 | 2 . 1 . Leg . | . . . . Wheel 4 | . . . 4 Hover . | . . . . Flight . | . . . . Utility 5 | 2 1 . 2 Device 2 | 1 . . 1 Storage 3 | 1 1 . 1 Processor . | . . . . Hackware . | . . . . Protection . | . . . . Artifact . | . . . . Weapon 9 | 2 2 1 4 Energy Gun . | . . . . Energy Cannon 1 | . . . 1 Ballistic Gun 7 | 2 2 . 3 Ballistic Cannon 1 | . . 1 . Launcher . | . . . . Special Weapon . | . . . . Impact Weapon . | . . . . Slashing Weapon . | . . . . Piercing Weapon . | . . . . Special Melee Weapon . | . . . . Unidentified Prototypes 1 | . . . 1 Parts Lost 4 | . . . 4 Power 1 | . . . 1 Propulsion . | . . . . Utility . | . . . . Weapon 3 | . . . 3 Highest Loss Streak 3 | . . . 3 To Critical Strikes . | . . . . Average Backups 16 | 3 6 15 20 Power 2 | . 1 3 2 Propulsion 3 | 1 2 2 3 Utility 6 | . 1 4 8 Weapon 4 | . 1 5 4 Tool/Special . | . . . . Unused Backups 23 | . . 2 21 Power 6 | . . 2 4 Propulsion 2 | . . . 2 Utility 10 | . . . 10 Weapon 4 | . . . 4 Tool/Special 1 | . . . 1 Average Slot Usage (%) 95 | . 100 100 91 Engine 13 | . 14 14 12 Treads 16 | . 28 28 5 Wheel 11 | . . . 22 Device 10 | . 14 14 7 Storage 13 | . 14 14 13 Energy Cannon 1 | . . . 2 Ballistic Gun 25 | . 28 27 22 Ballistic Cannon 1 | . . . 2 Peak Build Rating 17 | 7 8 12 17 Average Rating 10 | 4 7 8 13 On Entrance 6 | . 7 8 12 Naked Turns . | . . . . Heaviest Build 215 | 12 48 54 215 Greatest Support 40 | 40 40 40 40 Greatest Overweight (x) 20 | . 1 1 20 Average Overweight (x) 2 | . . 1 3 Largest Inventory Capacity 35 | 8 20 20 35 Average Capacity 22 | 7 11 20 27 Most Carried 26 | 5 11 20 26 Average Carried 16 | 3 6 15 20 Final Capacity 20 | 8 20 20 20 Final Carried 20 | 4 11 20 19 Class Distribution -------------------- 77% | Mutant 22% | Hauler-Mutant Dominant Class ---------------- Mutant | -10/Materials Mutant | -10/Mines Mutant | -10/Subcaves Resources | -11 -10 -10 -10 ----------- Run | Yrd Mat Min Sub Matter Collected 1113 | 256 250 132 475 Remotely . | . . . . Salvage Created 598 | 13 167 174 244 Parts 49 | 3 14 15 17 Haulers Intercepted 1 | . 1 . . Recyclers Shooed 1 | 1 . . . Parts Field Recycled . | . . . . Retrieved Matter . | . . . . Parts Self-Destructed 5 | . . . 5 Prevented . | . . . . Kills | -11 -10 -10 -10 ------- Run | Yrd Mat Min Sub Combat Hostiles Destroyed 17 | . 2 8 7 Guns 14 | . 2 8 4 Cannons 3 | . . . 3 Classes Destroyed 6 | 1 3 1 1 Tunneler 1 | 1 . . . Hauler 1 | . 1 . . Watcher 3 | . 3 . . Swarmer 10 | . . 6 4 Grunt 4 | . 2 2 . Subdweller 3 | . . . 3 Best Kill Streak 4 | 1 3 4 4 Combat Bots Only 4 | . 2 3 4 Max Kills in Single Turn 2 | 1 1 2 1 Gunslinging 1 | . . 1 . Exploded . | . . . . Melee . | . . . . Uniques/NPCs Destroyed . | . . . . Combat | -11 -10 -10 -10 -------- Run | Yrd Mat Min Sub Hostile Shots Fired 104 | . 11 31 62 Missed 28 | . 5 10 13 Hits 76 | . 6 21 49 Projectile 76 | . 6 21 49 AOE 2 | . . . 2 Critical Strikes 1 | . . . 1 Damage Taken 1372 | . 67 193 1112 Core 251 | . . 36 215 Absorbed by Shields . | . . . . Core Remaining (%) 100 | 100 . . . Volleys Fired 85 | 3 12 16 54 Largest 2 | 2 2 2 2 Hottest 100 | 40 40 40 100 Shots Fired 153 | 6 24 32 91 Gun 129 | 6 24 32 67 Cannon 24 | . . . 24 Launcher . | . . . . Special . | . . . . Kinetic 147 | 6 24 32 85 Thermal 6 | . . . 6 Explosive . | . . . . Electromagnetic . | . . . . Robot Hit Streak 16 | 3 5 9 16 Robot Miss Streak 7 | 1 1 2 7 Penetration Max . | . . . . Secondary Targets 1 | . . 1 . Max Gunslinging Chain 1 | . . 1 . Shots Hit Robots 105 | 3 14 22 66 Core Hits 48 | 3 8 11 26 Critical Kills . | . . . . Critical Parts Destroyed . | . . . . Critical Strikes . | . . . . Melee Attacks . | . . . . Impact . | . . . . Slashing . | . . . . Piercing . | . . . . Sneak Attacks . | . . . . Combat Hostiles . | . . . . Follow-up Attacks . | . . . . Damage Inflicted 1473 | 34 129 300 1010 Guns 1093 | 34 129 300 630 Cannons 380 | . . . 380 Explosions . | . . . . Melee . | . . . . Ramming . | . . . . Kinetic 1419 | 34 129 300 956 Thermal 54 | . . . 54 Explosive . | . . . . Electromagnetic . | . . . . Impact . | . . . . Slashing . | . . . . Piercing . | . . . . Highest Corruption . | . . . . Average Corruption . | . . . . Corruption Purged . | . . . . Corruption Blocked . | . . . . Overload Shots . | . . . . Overflow Damage . | . . . . Projectiles . | . . . . Explosions . | . . . . Melee . | . . . . Knockbacks 5 | . . . 5 Impact . | . . . . Kinetic 5 | . . . 5 Secondary . | . . . . Self-Inflicted Damage . | . . . . Shots . | . . . . Rammed . | . . . . Targets Rammed . | . . . . Kicked . | . . . . Crushed . | . . . . Highest Temperature 252 | . 12 2 252 Average Temperature 82 | . 8 2 137 Received Heat Transfer 591 | . 36 51 504 Effects 1 | . . . 1 Energy Bleed 1 | . . . 1 Siege Activations . | . . . . Martial Activations . | . . . . Shielding Activations . | . . . . Robots Disrupted . | . . . . Combat Hostiles . | . . . . Robots Corrupted . | . . . . Combat Hostiles . | . . . . Parts Fried . | . . . . Impact Corruptions . | . . . . Robots Melted . | . . . . Combat Hostiles . | . . . . Parts Melted 1 | . . . 1 Heat Transferred 74 | . . . 74 Parts Sabotaged . | . . . . Parts Stolen . | . . . . Parts Stripped . | . . . . Power Chain Reactions . | . . . . Alert | -11 -10 -10 -10 ------- Run | Yrd Mat Min Sub Maximum Alert Level . | . . . . Low Security (%) 100 | 100 100 100 . Level 1 . | . . . . Level 2 . | . . . . Level 3 . | . . . . Level 4 . | . . . . Level 5 . | . . . . High Security . | . . . . Max Security . | . . . . Peak Influence 72 | 5 62 72 . Initial 2 | . . 2 . Average 13 | . 18 13 . Influence Increases 373 | 5 98 190 80 Destroy 0b10 Robot/C 280 | . 40 160 80 Destroy 0b10 Robot/NC 25 | 5 20 . . Destroy Leader 48 | . 18 30 . Successful Hack 5 | . 5 . . Lose Combat Pursuer 15 | . 15 . . Influence Decreases 373 | 5 91 197 80 Entered New Map 5 | . . 5 . Time Decay 368 | 5 91 192 80 Squads Dispatched 3 | . 3 . . Investigation 1 | . 1 . . Extermination . | . . . . Reinforcement 2 | . 2 . . Assault . | . . . . Garrison . | . . . . Intercept . | . . . . Searches Triggered . | . . . . Construction Impeded . | . . . . Haulers Reinforced . | . . . . Active Scanning Responses . | . . . . Cargo Convoy Interrupts . | . . . . Stealth | -11 -10 -10 -10 --------- Run | Yrd Mat Min Sub Distress Signals . | . . . . Communications Jammed . | . . . . Distress Signals . | . . . . Times Spotted 24 | . 6 8 10 Peak Tracking Total 4 | . 3 3 4 Tactical Retreats 1 | . 1 . . Traps | -11 -10 -10 -10 ------- Run | Yrd Mat Min Sub Traps Triggered 1 | . 1 . . Indirectly . | . . . . Trap Hack Attempts . | . . . . Triggered . | . . . . Disarmed . | . . . . Reprogrammed . | . . . . Reused . | . . . . Traps Extracted . | . . . . Installed . | . . . . Triggered . | . . . . Machines | -11 -10 -10 -10 ---------- Run | Yrd Mat Min Sub Machines Disabled . | . . . . Max in Single Turn . | . . . . Machines Repaired . | . . . . Machines Dismantled . | . . . . Machines Sabotaged . | . . . . Overloaded Fab Kills . | . . . . Hacking | -11 -10 -10 -10 --------- Run | Yrd Mat Min Sub Machines Accessed 5 | . 4 1 . Terminals 4 | . 4 . . Fabricators . | . . . . Repair Stations . | . . . . Recycling Units . | . . . . Scanalyzers . | . . . . Garrison Access . | . . . . Total Hacks 9 | . 8 1 . Successful 4 | . 3 1 . Failed 5 | . 5 . . Catastrophic 1 | . 1 . . Database Lockouts . | . . . . Manual 8 | . 8 . . Terminals 8 | . 8 . . Fabricators . | . . . . Repair Stations . | . . . . Recycling Units . | . . . . Scanalyzers . | . . . . Garrison Access . | . . . . Terminal Hacks 3 | . 2 1 . Open Door 1 | . . 1 . Zone Layout 2 | . 2 . . Fabricator Hacks . | . . . . Repair Station Hacks . | . . . . Recycling Unit Hacks . | . . . . Scanalyzer . | . . . . Garrison Access Hacks . | . . . . Unauthorized Hacks 1 | . 1 . . Terminals 1 | . 1 . . Botnet 1 | . 1 . . Fabricators . | . . . . Repair Stations . | . . . . Recycling Units . | . . . . Scanalyzers . | . . . . Garrison Access . | . . . . Data Cores Recovered . | . . . . Used . | . . . . Hacking Detections 3 | . 3 . . Full Trace Events . | . . . . Feedback Events . | . . . . Feedback Blocked . | . . . . Robot Schematics Acquired . | . . . . Robots Built . | . . . . Authchips . | . . . . Time . | . . . . Total Robot Build Rating . | . . . . Part Schematics Acquired . | . . . . Parts Built . | . . . . Authchips . | . . . . Time . | . . . . Total Part Build Rating . | . . . . Parts Repaired . | . . . . Time . | . . . . Parts Recycled . | . . . . Recycled Matter . | . . . . Retrieved Matter . | . . . . Retrieved Components . | . . . . Parts Scanalyzed . | . . . . Part Schematics Acquired . | . . . . Parts Damaged . | . . . . Bothacking | -11 -10 -10 -10 ------------ Run | Yrd Mat Min Sub Used RIF Installer . | . . . . Robots Hacked . | . . . . Non-combat . | . . . . Combat . | . . . . Robot Hacks Applied . | . . . . Relay Couplers Released . | . . . . Fabnet Peak Effective % . | . . . . Robots Rewired . | . . . . Allies Hacked . | . . . . Hacks Repelled . | . . . . Allies | -11 -10 -10 -10 -------- Run | Yrd Mat Min Sub Total Allies 2 | . . . 2 Largest Group 2 | . . . 2 Highest-Rated Group 38 | . . . 38 Highest-Rated Ally 19 | . . . 19 Total Orders . | . . . . Ally Attacks 2 | . . . 2 Total Damage 28 | . . . 28 Kills . | . . . . Allies Corrupted . | . . . . Allies Melted . | . . . . Intel | -11 -10 -10 -10 ------- Run | Yrd Mat Min Sub Active Infowar (turns) 1797 | 21 318 1166 292 Seismic 1797 | 21 318 1166 292 Robot Analysis Total . | . . . . Derelict Logs Recovered 1 | . . 1 . Drone Launches . | . . . . Drone Recoveries . | . . . . Exploration | -11 -10 -10 -10 ------------- Run | Yrd Mat Min Sub Turns Passed 3062 | 107 318 1166 1471 Spaces Moved 1490 | 67 150 440 833 Core 23 | 23 . . . Treads 734 | 44 150 440 100 Legs . | . . . . Wheels 733 | . . . 733 Hover . | . . . . Flight . | . . . . Fastest Speed 50 | 50 160 240 95 Average Speed 177 | 122 180 240 148 Slowest Speed 380 | 160 240 240 380 Overloaded Moves . | . . . . Propulsion Burnouts . | . . . . Robots Hopped . | . . . . Potential Cave-ins . | . . . . Cave-ins Triggered . | . . . . Exploration Rate (%) 41 | 5 44 87 31 Regions Visited 3 Branch Regions 2 Pre-discovered Areas 1 | . . 1 . Known Exits Taken . | . . . . Unknown Exits Taken 3 | 1 1 1 . Scrap Searched 3 | . . 1 2 Spaces Dug . | . . . . Terrain Destroyed . | . . . . Melee . | . . . . Projectile . | . . . . AOE . | . . . . Terrain Rammed . | . . . . Walls Destroyed . | . . . . Machines Disabled . | . . . . Actions | -11 -10 -10 -10 --------- Run | Yrd Mat Min Sub Total 1755 | 86 178 519 972 Wait 53 | . 3 41 9 Move 1487 | 66 149 439 833 Hop . | . . . . Pick Up 76 | 10 8 14 44 Fast Attach 3 | 1 . . 2 Attach 12 | 6 . . 6 Detach 1 | . . . 1 Swap 18 | . 3 4 11 Drop 19 | . 3 5 11 Fire 85 | 3 12 16 54 Melee . | . . . . Ram . | . . . . Kick . | . . . . Crush . | . . . . Escape Stasis . | . . . . Rewire 1 | . . . 1 Trap . | . . . . Miscellaneous . | . . . . Route ------- -11/Scrapyard -10/Materials -10/Mines (discovered 2 exits: [*Mat] / [*Sub]) -10/Subcaves (discovered 1 exit: [*Mat]) History --------- Turn | Location | Event 7 | -11/Scrapyard | Discovered new exit (range 15) 108 | -11/Scrapyard | Entered Materials 288 | -10/Materials | Discovered new exit (range 17) 318 | -10/Materials | Build established: Mutant 426 | -10/Materials | Entered Mines 668 | -10/Mines | Received a Rocket Launcher from a helpful Derelict 902 | -10/Mines | Found DCF Scrap (14 items) 1133 | -10/Mines | Discovered new exit (range 15) 1153 | -10/Mines | Learned location of Storage (-8) 1367 | -10/Mines | Learned 4 Materials zone layouts 1371 | -10/Mines | Met a Derelict who couldn't figure out how to use a Trap Extractor 1570 | -10/Mines | Discovered new exit (range 5) 1592 | -10/Mines | Entered Subcaves 1815 | -10/Subcaves | A swath of the cavern ceiling suddenly collapsed 1997 | -10/Subcaves | Disturbed a concealed Subdweller 2184 | -10/Subcaves | Build established: Hauler-Mutant 2272 | -10/Subcaves | Shifting Twisted Machinery released Sub. Machine Gun 2345 | -10/Subcaves | Lost 3 parts (1p2w) 2360 | -10/Subcaves | Core integrity fell below 50% 2555 | -10/Subcaves | Visited triangular shrine 2566 | -10/Subcaves | Found Prototype Device 2591 | -10/Subcaves | Identified V3-11A's Pendant 2640 | -10/Subcaves | Befriended Subdweller 2830 | -10/Subcaves | Befriended Subdweller 2835 | -10/Subcaves | Core integrity fell below 20% 2849 | -10/Subcaves | Discovered new exit (range 6) 2887 | -10/Subcaves | Build established: Mutant 3063 | -10/Subcaves | Destroyed by XF-5HX(R) with Subdweller Shrapnel Launcher Last Messages --------------- down. 02741_ Acquired 8 matter. 02830_ JF-5QW(R): "SUBSUB?" 02834_ V3-11A: "I hear you, but what does it all mean?!" 02834_ V3-11A destroyed. 02834_ 0Z-X5B(R) destroyed. 02834_ Acquired 33 matter. 02837_ Acquired 24 matter. 02842_ Acquired Sub. Beam Cannon. 02844_ Acquired Sub. Power Source. 02849_ EXIT=FOUND 02852_ 9O-MPG(u) tweaks Twisted Machinery. 02940_ 9O-MPG(u) builds Twisted Machinery. 02958_ Acquired 2 matter. 02979_ Sub. Monowheel shoots sparks and powers down. 03034_ KL-6HQ(z): "She is not going to be happy we haven't found any suitable candidates yet." 03058_ Acquired 7 matter. Map ----- +----------------------------------------------------+ | ?????????????????????????????????????????????????? | | ?????????????????????????????????????????????????? | | ?????????????????????????????????????????????????? | | ?????????????????????????????????????????????????? | | ?????????????????????????????????????????????????? | | ?????????????????????????????????????????????????? | | ?????????????????????????????????????????????????? | | ????????????????????????????????????????????????? | | ?????###?????????????????????????????? ??????? | | ?????#"#?????????????????????????????? ??????? | | ????## ##????????????????????????????? ??????? | | ????#" "#?????????????????????####?##? ??????? | | ???## ##???????????????????# ## ??# #?????## | | ???#" "#???????????????????? ??## #???? # | | ???### ###????????????????????# ??? ##??? # | | ###### ######????????????????## ???## #???? | | # ## # # ##???????????????# #???# #???? | | ##### [ ##??????????????# ##??# ????## | | #???###! ! !#??????????????# ##?# ##??## | | #?##### =#??????????????# #??# #### | | ###" " =##???????#????### ##?# ## | | " """ " ##????????#$?### ### | | " " """ #?????????#$?# #< | | """ """"" #?????????#R #% | | """ ##?????????#<&# #" | | ### ##"###???????????#&@<## % ### | | ### #####??##?????????####### % ##?# | | ?# #?#### ##??????????????###########??##### | | ## ##?# #???????????????????????????????#### | | " #?# #??????????????????????????????????## | | ### ##????????????????????????? "??????# | | ## ## ##????????????????????????? "#?????## | | ?# #?????????????????????????? ??????## | | ?#"" " ##????????????????????????? ??????## | | ##" " ####?????????????????????????? ????### | | # " "##???????????????????????????? % ##????# | | ""##????????????????????????????# #???# | | ##???????????????????????###?## ????# | | " #??#????????????????????# ### %% #####?# # | | ## #####???????????????????## ### #### #? | | ## ###"##??????????????????# ### #?###?? | | ## #""######?????????###### #?# #?????? | | ##"#"""""#?????????# #?# ##????? | | ####""#"""#???####### ### #####? | | ######"#""##??## # ## ## | | "#"##"""###??## ### ## | | """##"####????# ######## ### | | ####""# ##???# #???### ## | | !""#"#"#" #???## ##??## ### # | | =##"""##""#???# ##### #?# # | +----------------------------------------------------+ Best States ------------- Heat Dissipation 25 Energy Generation 15 Energy Capacity 250 Matter Stores 300 Matter Capacity 300 Sight Range 16 Terrain Scan Density 10 Evasion (%) 50 Recoil Reduction 2 Item Schematics ----------------- None Robot Schematics ------------------ None Fabricated ------------ Nothing Repaired ---------- Nothing Alien Tech Used ----------------- None Achievements -------------- None Challenges ------------ None Game ------ Seed RestorationMetafiberOptics Manual? 0 Play Time 00:14:05 Cumulative 250.4 hours Start 2025.09.02 @ 10:52:01 End 2025.09.02 @ 11:04:58 Sessions 1 Manual Loads 0 Difficulty Rogue Special Mode None Game No. 364 Rogue 364 Adventurer 0 Explorer 0 Win Type - Total 5 Types 4/0/1/0/0/0/0/0/0/0 Lore% 82 Gallery% 79 Achievement% 61 Wizard Run 0 Options --------- Layout 1 ASCII 0 Keyboard 0 Movement Mouse Keybinds 0 Fullscreen 1 Font 32/SmallcapsGlow Map View 50x35 Zoom Use 0% Tactical HUD 1 Map Filters NONE Filters NONE Steam 1 RUN: 5ce24df9-191c-43c4-b43b-72892f3fec6c